fUSD/lending_fUSD_20260420
["ID","MTS","AMOUNT","RATE_DAILY","PERIOD"]
[420861413,1776655834054,-500.0,0.00010499,2]
[420861414,1776655834063,-500.0,0.00010499,2]
[420861415,1776655834072,-500.0,0.00010499,2]
[420861416,1776655834081,-500.0,0.00010499,2]
[420861417,1776655834090,-500.0,0.00010499,2]
[420861418,1776655834099,-500.0,0.00010499,2]
[420861419,1776655834108,-500.0,0.00010499,2]
[420861420,1776655834117,-500.0,0.00010499,2]
[420861421,1776655834127,-500.0,0.00010499,2]
[420861422,1776655834136,-500.0,0.00010499,2]
[420861423,1776655834145,-500.0,0.00010499,2]
[420861424,1776655834154,-500.0,0.00010499,2]
[420861425,1776655834163,-500.0,0.00010499,2]
[420861426,1776655834172,-500.0,0.00010499,2]
[420861427,1776655834181,-500.0,0.00010499,2]
[420861428,1776655834190,-500.0,0.00010499,2]
[420861429,1776655834200,-500.0,0.00010499,2]
[420861430,1776655834209,-500.0,0.00010499,2]
[420861431,1776655834218,-500.0,0.00010499,2]
[420861432,1776655834227,-500.0,0.00010499,2]
[420861433,1776655834236,-500.0,0.00010499,2]
[420861434,1776655834245,-500.0,0.00010499,2]
[420861435,1776655834254,-500.0,0.00010499,2]
[420861436,1776655834264,-500.0,0.00010499,2]
[420861437,1776655834273,-500.0,0.00010499,2]
[420861438,1776655834283,-500.0,0.00010499,2]
[420861439,1776655834292,-500.0,0.00010499,2]
[420861440,1776655834301,-500.0,0.00010499,2]
[420861441,1776655834310,-500.0,0.00010499,2]
[420861442,1776655834319,-500.0,0.00010499,2]
[420861443,1776655834329,-500.0,0.00010499,2]
[420861444,1776655834338,-500.0,0.00010499,2]
[420861445,1776655834348,-500.0,0.00010499,2]
[420861446,1776655834357,-500.0,0.00010499,2]
[420861447,1776655834366,-500.0,0.00010499,2]
[420861448,1776655834375,-500.0,0.00010499,2]
[420861449,1776655834384,-500.0,0.00010499,2]
[420861450,1776655834393,-500.0,0.00010499,2]
[420861451,1776655834403,-500.0,0.00010499,2]
[420861452,1776655834412,-500.0,0.00010499,2]
[420861453,1776655834422,-500.0,0.00010499,2]
[420861454,1776655834431,-500.0,0.00010499,2]
[420861455,1776655834441,-500.0,0.00010499,2]
[420861456,1776655834450,-500.0,0.00010499,2]
[420861457,1776655834459,-165.77977211,0.00010499,2]
[420861458,1776655834468,-500.0,0.00010499,2]
[420861459,1776655834477,-500.0,0.00010499,2]
[420861460,1776655834486,-500.0,0.00010499,2]
[420861461,1776655834495,-500.0,0.00010499,2]
[420861462,1776655834504,-500.0,0.00010499,2]
[420861463,1776655834514,-500.0,0.00010499,2]
[420861464,1776655834523,-500.0,0.00010499,2]
[420861465,1776655834532,-500.0,0.00010499,2]
[420861466,1776655834541,-500.0,0.00010499,2]
[420861467,1776655834550,-500.0,0.00010499,2]
[420861468,1776655834560,-500.0,0.00010499,2]
[420861469,1776655834569,-500.0,0.00010499,2]
[420861470,1776655834578,-151.81864722,0.00010499,2]
[420861471,1776655834587,-500.0,0.00010499,2]
[420861472,1776655834597,-500.0,0.00010499,2]
[420861473,1776655834606,-500.0,0.00010499,2]
[420861474,1776655834615,-500.0,0.00010499,2]
[420861475,1776655834624,-500.0,0.00010499,2]
[420861476,1776655834633,-500.0,0.00010499,2]
[420861477,1776655834643,-500.0,0.00010499,2]
[420861478,1776655834652,-500.0,0.00010499,2]
[420861479,1776655834661,-500.0,0.00010499,2]
[420861480,1776655834671,-500.0,0.00010499,2]
[420861481,1776655834680,-500.0,0.00010499,2]
[420861482,1776655834690,-500.0,0.00010499,2]
[420861483,1776655834699,-500.0,0.00010499,2]
[420861484,1776655834708,-500.0,0.00010499,2]
[420861485,1776655834718,-500.0,0.00010499,2]
[420861486,1776655834727,-500.0,0.00010499,2]
[420861487,1776655834736,-818712.88730734,0.000105,2]
[420861488,1776655834749,-11632.65224034,0.000105,2]
[420861489,1776655837993,-500.0,0.00010499,2]
[420861490,1776655838005,-500.0,0.00010499,2]
[420861491,1776655838015,-500.0,0.00010499,2]
[420861492,1776655838026,-500.0,0.00010499,2]
[420861493,1776655838035,-411.89151724,0.00010499,2]
[420861494,1776655838046,-1568.31940258,0.000105,2]
[420861495,1776655838058,-1884.13741114,0.000105,2]
[420861496,1776655838103,-844.4250577,0.000105,2]
[420861509,1776655848574,-2750.21355976,0.000105,2]
[420861510,1776655850907,-69743.6268691,0.000105,2]
[420861511,1776656110475,150.0,0.00013699,30]
[420861512,1776656110621,184.0,0.00013699,30]
[420861518,1776656834409,-150.0,8.891e-05,2]
[420861523,1776657032046,-150.0,9.078e-05,2]
[420861524,1776657032056,-250.0,9.153e-05,2]
[420861525,1776657032066,-6107.7,9.229e-05,2]
[420861526,1776657032076,-213.91,9.252e-05,2]
[420861527,1776657032086,-156.39,9.252e-05,2]
[420861528,1776657032096,-1200.0,9.32e-05,2]
[420861529,1776657032105,-155.75935157,9.321e-05,2]
[420861530,1776657032115,-151.04716933,9.321e-05,2]
[420861531,1776657032124,-164.27592008,9.321e-05,2]
[420861532,1776657032134,-150.5096928,9.321e-05,2]
[420861533,1776657032143,-153.70871992,9.321e-05,2]
[420861534,1776657032153,-150.28549863,9.321e-05,2]
[420861535,1776657032163,-151.52381822,9.321e-05,2]
[420861536,1776657032173,-153.62083075,9.321e-05,2]
[420861537,1776657032183,-150.0,9.321e-05,2]
[420861538,1776657032193,-211.3,9.33e-05,2]
[420861539,1776657032202,-260.67,9.412e-05,2]
[420861540,1776657032212,-5443.06,9.489e-05,2]
[420861541,1776657032222,-150.0,9.491e-05,2]
[420861542,1776657032231,-4902.79,9.539e-05,2]
[420861543,1776657032242,-2427.48,9.563e-05,2]
[420861544,1776657032251,-1600.0,9.563e-05,2]
[420861545,1776657032260,-2000.0,9.595e-05,2]
[420861546,1776657032270,-168.36,9.685e-05,2]
[420861547,1776657032279,-250.0,9.985e-05,2]
[420861548,1776657032289,-212.59936818,9.985e-05,2]
[420861549,1776657032299,-194.80530298,9.985e-05,2]
[420861550,1776657032309,-250.0,9.985e-05,2]
[420861551,1776657032318,-606.19873347,0.0001007,2]
[420861552,1776657032328,-363.71924008,0.0001007,2]
[420861553,1776657032337,-242.47949339,0.0001007,2]
[420861554,1776657032346,-256.83,0.00010089,2]
[420861555,1776657032356,-168.36,0.00010218,2]
[420861556,1776657032365,-413.72052146,0.00010249,2]
[420861557,1776657032374,-480.0,0.00010252,2]
[420861558,1776657032384,-76609.5310173,0.00010269,2]
[420861559,1776657032396,-75632.70937907,0.00010269,2]
[420861560,1776657032407,-20592.64062382,0.00010269,2]
[420861561,1776657032418,-41778.16650658,0.00010269,2]
[420861562,1776657032429,-1254.41808677,0.00010269,2]
[420861565,1776657041246,-242.4543694,0.00010268,2]
[420861566,1776657041255,-500.0,0.00010268,2]
[420861567,1776657041265,-411.89151724,0.00010268,2]
[420861568,1776657041275,-500.0,0.00010268,2]
[420861569,1776657041284,-500.0,0.00010268,2]
[420861570,1776657041294,-500.0,0.00010268,2]
[420861571,1776657041303,-639.27475686,0.00010268,2]
[420861572,1776657041313,-500.0,0.00010268,2]
[420861573,1776657041322,-175.15020386,0.00010268,2]
[420861574,1776657041332,-11.44007246,0.00010268,2]
[420861575,1776657041344,-488.55992754,0.00010268,2]
[420861576,1776657041353,-500.0,0.00010268,2]
[420861577,1776657041362,-187.0,0.00010268,2]
[420861578,1776657041372,-500.0,0.00010268,2]
[420861579,1776657041382,-208.5774836,0.00010268,2]
[420861580,1776657041633,-160.98316594,0.00010268,2]
[420861581,1776657041643,-500.0,0.00010268,2]
[420861582,1776657041653,-500.0,0.00010268,2]
[420861583,1776657041663,-500.0,0.00010268,2]
[420861584,1776657041673,-500.0,0.00010268,2]
[420861585,1776657041682,-500.0,0.00010268,2]
[420861586,1776657041691,-500.0,0.00010268,2]
[420861587,1776657041704,-500.0,0.00010268,2]
[420861588,1776657041714,-500.0,0.00010268,2]
[420861589,1776657041724,-500.0,0.00010268,2]
[420861590,1776657041734,-500.0,0.00010268,2]
[420861591,1776657041743,-376.49504774,0.00010268,2]
[420861592,1776657041752,-500.0,0.00010268,2]
[420861593,1776657041762,-500.0,0.00010268,2]
[420861594,1776657041771,-1284132.53438646,0.00010269,2]
[420861595,1776657041780,-5000.0,0.00010275,2]
[420861596,1776657041790,-2500.0,0.00010275,2]
[420861597,1776657041799,-151.0,0.0001029,2]
[420861598,1776657041809,-174.61919141,0.0001029,2]
[420861599,1776657041818,-11818.0295,0.00010296,2]
[420861600,1776657041827,-2258.875,0.00010296,2]
[420861601,1776657041836,-172.979,0.00010296,2]
[420861602,1776657041846,-447.69122753,0.00010296,2]
[420861603,1776657041855,-1145.55084006,0.00010299,2]
[420861604,1776657041865,-5347.19411782,0.00010299,2]
[420861605,1776657041875,-150.0,0.00010326,2]
[420861606,1776657041884,-151.0,0.00010345,2]
[420861607,1776657041894,-256.26351018,0.00010356,2]
[420861608,1776657041904,-500.0,0.00010369,2]
[420861609,1776657041914,-500.0,0.00010369,2]
[420861610,1776657041923,-500.0,0.00010369,2]
[420861611,1776657041933,-500.0,0.00010369,2]
[420861612,1776657041942,-500.0,0.00010369,2]
[420861613,1776657041951,-500.0,0.00010369,2]
[420861614,1776657041961,-500.0,0.00010369,2]
[420861615,1776657041971,-524.37994148,0.00010369,2]
[420861616,1776657041981,-1341.761034,0.00010369,2]
[420861617,1776657041991,-202.68708001,0.00010369,2]
[420861618,1776657042000,-2000.0,0.00010369,2]
[420861619,1776657042604,-2000.0,0.00010369,2]
[420861620,1776657042613,-747.43603349,0.00010369,2]
[420861621,1776657042623,-2000.0,0.00010369,2]
[420861622,1776657042633,-2000.0,0.00010369,2]
[420861623,1776657042642,-2000.0,0.00010369,2]
[420861624,1776657042651,-2000.0,0.00010369,2]
[420861625,1776657042661,-2000.0,0.00010369,2]
[420861627,1776657042671,-2000.0,0.00010369,2]
[420861629,1776657042681,-2000.0,0.00010369,2]
[420861630,1776657042690,-2000.0,0.00010369,2]
[420861631,1776657042699,-924.60058549,0.00010369,2]
[420861632,1776657042709,-151.27087827,0.00010369,2]
[420861633,1776657042718,-194.72792766,0.00010369,2]
[420861634,1776657042728,-155.50258205,0.00010369,2]
[420861635,1776657042737,-651.77183213,0.00010374,2]
[420861636,1776657042746,-5018.38416228,0.00010399,2]
[420861637,1776657042756,-151.0,0.000104,2]
[420861638,1776657042766,-1000.0,0.000104,2]
[420861639,1776657042775,-33073.7314,0.000104,2]
[420861640,1776657042785,-169.31,0.000104,2]
[420861641,1776657042794,-1062.06,0.00010404,2]
[420861642,1776657042804,-151.0,0.00010455,2]
[420861643,1776657042813,-11984.0,0.00010466,2]
[420861644,1776657042823,-731.178015,0.00010475,2]
[420861645,1776657042833,-731.178015,0.00010475,2]
[420861646,1776657042843,-731.178015,0.00010475,2]
[420861647,1776657042852,-731.178015,0.00010475,2]
[420861648,1776657042862,-151.0,0.00010475,2]
[420861649,1776657042872,-151.0,0.00010475,2]
[420861650,1776657042881,-151.0,0.00010475,2]
[420861651,1776657042891,-151.0,0.00010475,2]
[420861652,1776657042900,-201.202108,0.00010475,2]
[420861653,1776657042910,-201.202108,0.00010475,2]
[420861654,1776657042921,-201.202108,0.00010475,2]
[420861655,1776657042931,-201.202108,0.00010475,2]
[420861656,1776657042941,-351.99,0.00010475,2]
[420861657,1776657042950,-999.99,0.00010475,2]
[420861658,1776657042960,-150.99,0.00010475,2]
[420861659,1776657042969,-2737.12,0.00010475,2]
[420861660,1776657042979,-2701.0,0.00010475,2]
[420861661,1776657042988,-299.99,0.00010475,2]
[420861662,1776657042997,-1000.0,0.00010485,2]
[420861663,1776657043006,-151.0,0.00010497,2]
[420861664,1776657043015,-216.31778057,0.00010499,2]
[420861665,1776657043024,-238.00600758,0.00010499,2]
[420861666,1776657043034,-151.0,0.00010499,2]
[420861667,1776657043043,-108792.1101431,0.000105,2]
[420861668,1776657043052,-34761.5892162,0.000105,2]
[420861669,1776657043061,-2030.8330359,0.000105,2]
[420861670,1776657043070,-168.0,0.000105,2]
[420861671,1776657043080,-151.0,0.000105,2]
[420861672,1776657043089,-731.178015,0.000105,2]
[420861673,1776657043099,-731.178015,0.000105,2]
[420861674,1776657043108,-731.178015,0.000105,2]
[420861675,1776657043117,-731.178015,0.000105,2]
[420861676,1776657043126,-151.0,0.000105,2]
[420861677,1776657043136,-151.0,0.000105,2]
[420861678,1776657043145,-151.0,0.000105,2]
[420861679,1776657043154,-151.0,0.000105,2]
[420861680,1776657043163,-156.0,0.000105,3]
[420861681,1776657043173,-235.0,0.000105,3]
[420861682,1776657043182,-201.202108,0.000105,2]
[420861683,1776657043191,-201.202108,0.000105,2]
[420861684,1776657043200,-201.202108,0.000105,2]
[420861685,1776657043210,-201.202108,0.000105,2]
[420861686,1776657043219,-151.0,0.0001051,2]
[420861687,1776657043229,-1000.0,0.00010542,2]
[420861688,1776657043239,-228.22,0.0001055,2]
[420861689,1776657043248,-151.0,0.00010565,2]
[420861690,1776657043257,-1145.55084003,0.00010566,2]
[420861691,1776657043266,-1581.0,0.00010572,5]
[420861692,1776657043276,-1549.0,0.00010572,5]
[420861693,1776657043286,-184.71200976,0.000106,2]
[420861694,1776657043295,-5530.0,0.000106,5]
[420861695,1776657043304,-186.49017234,0.000106,2]
[420861696,1776657043313,-250.0,0.00010603,2]
[420861697,1776657043322,-151.0,0.0001062,2]
[420861698,1776657043331,-218.0,0.00010653,2]
[420861699,1776657043340,-151.0,0.00010675,2]
[420861700,1776657043350,-4313.0,0.00010685,2]
[420861701,1776657043359,-151.0,0.00010697,2]
[420861702,1776657043369,-151.0,0.00010697,2]
[420861703,1776657043379,-144797.14490584,0.000107,2]
[420861704,1776657043389,-151.0,0.000107,2]
[420861705,1776657043398,-731.178015,0.000107,2]
[420861706,1776657043407,-731.178015,0.000107,2]
[420861708,1776657043416,-731.178015,0.000107,2]
[420861710,1776657043426,-731.178015,0.000107,2]
[420861712,1776657043435,-151.0,0.000107,2]
[420861714,1776657043444,-151.0,0.000107,2]
[420861716,1776657043454,-151.0,0.000107,2]
[420861717,1776657043463,-201.202108,0.000107,2]
[420861718,1776657043472,-201.202108,0.000107,2]
[420861719,1776657043482,-201.202108,0.000107,2]
[420861720,1776657043491,-201.202108,0.000107,2]
[420861721,1776657043501,-151.0,0.0001073,2]
[420861722,1776657043510,-168.36,0.00010751,2]
[420861723,1776657043520,-1600.0,0.00010758,2]
[420861724,1776657043529,-255.32,0.00010784,2]
[420861725,1776657043538,-151.0,0.00010785,2]
[420861726,1776657043548,-2000.0,0.00010794,2]
[420861727,1776657043558,-770.08853,0.00010807,2]
[420861728,1776657043568,-770.08854,0.00010807,2]
[420861729,1776657043577,-770.08854,0.00010807,2]
[420861730,1776657043586,-770.08853,0.00010807,2]
[420861731,1776657043595,-770.08854,0.00010807,2]
[420861732,1776657043605,-770.08853,0.00010807,2]
[420861733,1776657043615,-228.22,0.00010824,2]
[420861734,1776657043624,-1145.55084003,0.00010833,2]
[420861735,1776657043634,-181.08010149,0.00010838,2]
[420861736,1776657043643,-151.0,0.0001084,2]
[420861737,1776657043653,-160.0,0.00010877,2]
[420861738,1776657043662,-506.398758,0.00010877,2]
[420861739,1776657043672,-160.0,0.00010877,2]
[420861740,1776657043682,-233.084285,0.00010877,2]
[420861741,1776657043692,-306.168571,0.00010877,2]
[420861742,1776657043701,-852.797517,0.00010877,2]
[420861743,1776657043710,-160.0,0.00010877,2]
[420861744,1776657043720,-329.253198,0.00010877,2]
[420861745,1776657043730,-498.506396,0.00010877,2]
[420861746,1776657043739,-160.0,0.00010877,2]
[420861747,1776657043749,-713.469302,0.00010877,2]
[420861748,1776657043759,-1266.938604,0.00010877,2]
[420861749,1776657043769,-190.664306,0.00010877,2]
[420861750,1776657043778,-160.0,0.00010877,2]
[420861751,1776657043787,-819.518767,0.00010877,2]
[420861752,1776657043797,-1479.037535,0.00010877,2]
[420861753,1776657043806,-160.0,0.00010877,2]
[420861754,1776657043815,-304.767143,0.00010877,2]
[420861755,1776657043825,-449.534286,0.00010877,2]
[420861756,1776657043835,-151.0,0.00010895,2]
[420861757,1776657043844,-507.0,0.00010915,2]
[420861758,1776657043853,-201.93286099,0.00010917,2]
[420861759,1776657043863,-151.0,0.00010926,2]
[420861760,1776657043872,-151.0,0.00010926,2]
[420861761,1776657043881,-151.0,0.00010926,2]
[420861762,1776657043891,-151.0,0.00010926,2]
[420861763,1776657043900,-151.0,0.00010926,2]
[420861764,1776657043909,-151.0,0.00010926,2]
[420861765,1776657043919,-151.0,0.00010926,2]
[420861766,1776657043928,-151.0,0.0001095,2]
[420861767,1776657043937,-500.0,0.00010959,2]
[420861768,1776657043947,-3240.0,0.00010959,2]
[420861769,1776657043956,-150.0,0.00010959,2]
[420861770,1776657043965,-185.78,0.00010959,2]
[420861771,1776657043974,-151.0,0.00010959,2]
[420861772,1776657043983,-152.797168,0.00010959,2]
[420861773,1776657043993,-151.0,0.00010959,2]
[420861774,1776657044002,-151.0,0.00010959,2]
[420861775,1776657044011,-151.0,0.00010959,2]
[420861776,1776657044020,-151.132656,0.00010959,2]
[420861777,1776657044030,-153.60113076,0.00010997,2]
[420861778,1776657044039,-3222.47114066,0.00010998,2]
[420861779,1776657044049,-2618.07,0.00011,2]
[420861780,1776657044058,-1039.5,0.00011,2]
[420861781,1776657044067,-914.16,0.00011,2]
[420861782,1776657044077,-1242.35,0.00011,2]
[420861783,1776657044087,-305.8,0.00011,2]
[420861784,1776657044096,-521.2,0.00011001,2]
[420861785,1776657044106,-1058.211,0.00011007,2]
[420861786,1776657044115,-2908.378,0.00011007,2]
[420861787,1776657044125,-1349.0,0.00011007,2]
[420861788,1776657044134,-1265.0,0.00011007,2]
[420861789,1776657044143,-927.0,0.00011007,2]
[420861790,1776657044153,-150.0,0.00011007,2]
[420861791,1776657044162,-200.0,0.00011007,2]
[420861792,1776657044172,-6030.0,0.00011007,2]
[420861793,1776657044182,-150.0,0.00011007,2]
[420861794,1776657044191,-172.998,0.00011007,2]
[420861795,1776657044201,-257.672,0.00011007,2]
[420861796,1776657044210,-150.262,0.00011007,2]
[420861797,1776657044220,-1436.092,0.00011007,2]
[420861798,1776657044229,-150.0,0.00011007,2]
[420861799,1776657044238,-1593.0,0.00011072,5]
[420861800,1776657044248,-300.0,0.00011098,2]
[420861801,1776657044257,-300.0,0.00011098,2]
[420861802,1776657044266,-228.22,0.00011098,2]
[420861803,1776657044276,-447.69122752,0.00011098,2]
[420861804,1776657044285,-187.67045122,0.00011099,2]
[420861805,1776657044294,-16590.67913213,0.00011099,2]
[420861806,1776657044303,-16590.67913213,0.00011099,2]
[420861807,1776657044313,-16590.67913213,0.00011099,2]
[420861808,1776657044322,-16590.67913213,0.00011099,2]
[420861809,1776657044332,-16590.67913213,0.00011099,2]
[420861810,1776657044341,-178.622842,0.00011099,2]
[420861811,1776657044351,-731.178015,0.00011099,2]
[420861812,1776657044360,-731.178015,0.00011099,2]
[420861813,1776657044369,-731.178015,0.00011099,2]
[420861814,1776657044378,-731.178015,0.00011099,2]
[420861815,1776657044388,-201.202108,0.00011099,2]
[420861816,1776657044397,-201.202108,0.00011099,2]
[420861817,1776657044407,-201.202108,0.00011099,2]
[420861818,1776657044415,-201.202108,0.00011099,2]
[420861819,1776657044425,-201.202108,0.00011099,2]
[420861820,1776657044434,-201.202108,0.00011099,2]
[420861821,1776657044443,-201.202108,0.00011099,2]
[420861822,1776657044453,-201.202107,0.00011099,2]
[420861823,1776657044462,-1145.55084003,0.000111,2]
[420861824,1776657044471,-235.0,0.00011105,3]
[420861825,1776657044481,-166.1,0.00011156,2]
[420861826,1776657044490,-16590.67913213,0.00011188,2]
[420861827,1776657044500,-160.0,0.00011235,2]
[420861828,1776657044509,-233.74,0.0001124,2]
[420861829,1776657044518,-151.0,0.0001124,2]
[420861830,1776657044528,-186.718174,0.0001124,2]
[420861831,1776657044537,-151.0,0.0001124,2]
[420861832,1776657044547,-152.578707,0.0001124,2]
[420861833,1776657044556,-168.36,0.00011283,2]
[420861834,1776657044566,-151.0,0.00011306,2]
[420861835,1776657044575,-151.0,0.00011306,2]
[420861836,1776657044585,-151.0,0.00011306,2]
[420861837,1776657044594,-151.0,0.00011306,2]
[420861838,1776657044603,-151.0,0.00011306,2]
[420861839,1776657044613,-151.0,0.00011306,2]
[420861840,1776657044622,-151.0,0.00011306,2]
[420861841,1776657044632,-151.0,0.00011306,2]
[420861842,1776657044641,-151.0,0.00011306,2]
[420861843,1776657044651,-151.0,0.00011306,2]
[420861844,1776657044660,-151.0,0.00011306,2]
[420861845,1776657044671,-151.0,0.00011306,2]
[420861846,1776657044680,-151.0,0.00011306,2]
[420861847,1776657044689,-151.0,0.00011306,2]
[420861848,1776657044699,-151.0,0.00011306,2]
[420861849,1776657044709,-151.0,0.00011306,2]
[420861850,1776657044718,-151.0,0.00011306,2]
[420861851,1776657044728,-151.0,0.00011306,2]
[420861852,1776657044737,-151.0,0.00011306,2]
[420861853,1776657044747,-151.0,0.00011306,2]
[420861854,1776657044756,-151.0,0.00011306,2]
[420861855,1776657044766,-151.0,0.00011306,2]
[420861856,1776657044775,-151.0,0.00011306,2]
[420861857,1776657044785,-151.0,0.00011306,2]
[420861858,1776657044795,-151.0,0.00011306,2]
[420861859,1776657044805,-151.0,0.00011306,2]
[420861860,1776657044814,-151.0,0.00011306,2]
[420861861,1776657044823,-151.0,0.00011306,2]
[420861862,1776657044832,-151.0,0.00011306,2]
[420861863,1776657044842,-151.0,0.00011306,2]
[420861864,1776657044851,-151.0,0.00011306,2]
[420861865,1776657044860,-151.0,0.00011306,2]
[420861866,1776657044870,-151.0,0.00011306,2]
[420861867,1776657044880,-1145.55084003,0.00011366,2]
[420861868,1776657044889,-16590.67913213,0.00011366,2]
[420861869,1776657044898,-228.22,0.00011372,2]
[420861870,1776657044907,-311.0,0.00011376,2]
[420861871,1776657044917,-187.78006525,0.00011386,2]
[420861872,1776657044926,-293.74,0.00011411,2]
[420861873,1776657044936,-317.842207,0.00011421,2]
[420861874,1776657044945,-690.543762,0.00011421,2]
[420861875,1776657044955,-448.981633,0.00011421,2]
[420861876,1776657044965,-972.912685,0.00011421,2]
[420861877,1776657044974,-1117.525592,0.00011421,2]
[420861878,1776657044984,-415.591558,0.00011421,2]
[420861879,1776657044994,-387.36,0.00011428,2]
[420861880,1776657045003,-209.40437684,0.00011465,2]
[420861881,1776657045013,-387.38052111,0.00011486,2]
[420861882,1776657045022,-13137.09059406,0.000115,3]
[420861883,1776657045032,-3291.98,0.00011507,2]
[420861884,1776657045041,-731.178015,0.00011544,2]
[420861885,1776657045051,-731.178015,0.00011544,2]
[420861886,1776657045060,-731.178015,0.00011544,2]
[420861887,1776657045069,-731.178024,0.00011544,2]
[420861888,1776657045079,-16590.67913213,0.00011544,2]
[420861889,1776657045087,-1145.55084003,0.00011633,2]
[420861890,1776657045096,-409.33040233,0.0001164,2]
[420861891,1776657045106,-228.26202823,0.00011646,2]
[420861892,1776657045115,-428.92,0.00011649,2]
[420861893,1776657045124,-235.0,0.00011711,3]
[420861894,1776657045133,-428.92,0.00011713,2]
[420861895,1776657045143,-338.24258581,0.0001172,2]
[420861896,1776657045152,-16590.67913213,0.00011722,2]
[420861897,1776657045162,-6361.80911364,0.0001176,2]
[420861898,1776657045171,-345.89,0.00011781,2]
[420861899,1776657045180,-361.38,0.0001188,2]
[420861900,1776657045190,-802.41614447,0.000119,2]
[420861901,1776657045199,-10000.0,0.000119,2]
[420861902,1776657045208,-1145.55084003,0.000119,2]
[420861903,1776657045217,-447.69122752,0.000119,2]
[420861904,1776657045226,-444.57483288,0.000119,2]
[420861905,1776657045236,-444.57483279,0.000119,2]
[420861906,1776657045245,-444.57483279,0.000119,2]
[420861907,1776657045254,-444.57483279,0.000119,2]
[420861908,1776657045264,-444.57483279,0.000119,2]
[420861909,1776657045273,-444.57483279,0.000119,2]
[420861910,1776657045284,-444.57483279,0.000119,2]
[420861911,1776657045294,-151.0,0.000119,2]
[420861912,1776657045304,-444.57483279,0.000119,2]
[420861913,1776657045313,-444.57483279,0.000119,2]
[420861914,1776657045323,-444.57483279,0.000119,2]
[420861915,1776657045332,-444.57483279,0.000119,2]
[420861916,1776657045341,-444.57483279,0.000119,2]
[420861917,1776657045350,-444.57483279,0.000119,2]
[420861918,1776657045359,-444.57483279,0.000119,2]
[420861919,1776657045368,-444.57483279,0.000119,2]
[420861920,1776657045382,-16590.67913213,0.000119,2]
[420861921,1776657045391,-444.57483279,0.000119,2]
[420861922,1776657045400,-444.57483279,0.000119,2]
[420861923,1776657045409,-444.57483279,0.000119,2]
[420861924,1776657045418,-444.57483279,0.000119,2]
[420861925,1776657045427,-444.57483279,0.000119,2]
[420861926,1776657045437,-3075.8966647,0.000119,2]
[420861927,1776657045446,-151.0,0.000119,2]
[420861928,1776657045455,-200.0,0.00011903,2]
[420861929,1776657045465,-200.0,0.00011904,2]
[420861930,1776657045474,-200.0,0.00011904,2]
[420861931,1776657045484,-194.72792766,0.00011934,2]
[420861932,1776657045493,-1600.0,0.00011953,2]
[420861933,1776657045502,-163.0,0.00011973,2]
[420861934,1776657045512,-275.0,0.00011975,2]
[420861935,1776657045521,-547.0,0.00011975,2]
[420861936,1776657045530,-481.5,0.0001198,2]
[420861937,1776657045539,-283.09,0.00011988,2]
[420861938,1776657045549,-150.0,0.00011988,2]
[420861939,1776657045559,-366.25,0.00011988,2]
[420861940,1776657045568,-2000.0,0.00011994,2]
[420861941,1776657045578,-300.0,0.00011999,2]
[420861942,1776657045587,-300.0,0.00011999,2]